bitfinex/quotes_SOLUSD_20250226
["timestamp","ask_amount","ask_price","bid_price","bid_amount"]
[1740554621390,18.77513886,141.86,141.78,7.8275]
[1740554622287,7.0487,141.87,141.78,14.8806]
[1740554622487,81.1,141.85,141.79,18.77513886]
[1740554622681,81.1,141.85,141.82,20.0]
[1740554622881,81.1,141.91,141.83,6.32]
[1740554623087,88.1468,141.91,141.83,13.3704]
[1740554624894,81.163,141.92,141.86,18.77513886]
[1740554625679,81.163,141.92,141.86,19.77513886]
[1740554625985,0.063,141.92,141.86,19.77513886]
[1740554626376,0.063,141.92,141.86,18.77513886]
[1740554626781,0.063,141.92,141.86,18.80513886]
[1740554627194,0.063,141.92,141.86,25.85423886]
[1740554627780,0.063,141.92,141.86,26.85423886]
[1740554628392,0.063,141.92,141.86,25.85423886]
[1740554628602,0.063,141.92,141.86,26.85423886]
[1740554629097,0.063,141.92,141.87,7.17389]
[1740554629293,0.063,141.92,141.88,25.09513886]
[1740554631584,0.063,141.92,141.88,32.14313886]
[1740554632186,0.063,141.92,141.91,20.0]
[1740554632390,0.063,141.92,141.88,32.14313886]
[1740554632692,0.063,141.92,141.89,0.12549]
[1740554633208,0.063,141.92,141.88,115.04313886]
[1740554634799,0.063,141.92,141.88,107.99513886]
[1740554635681,0.063,141.92,141.88,25.09513886]
[1740554636201,0.063,141.92,141.88,6.32]
[1740554640803,0.063,141.92,141.86,0.03]
[1740554640991,81.1,141.91,141.86,0.03]
[1740554642890,88.1467,141.91,141.86,0.03]
[1740554643211,81.1,141.9,141.86,0.03]
[1740554644114,81.1,141.89,141.86,0.03]
[1740554644302,81.1,141.88,141.86,0.03]
[1740554644508,81.1,141.87,141.86,0.03]
[1740554645219,88.1487,141.87,141.86,0.03]
[1740554645407,7.0487,141.87,141.86,0.03]
[1740554645912,7.17419,141.87,141.86,0.03]
[1740554646096,0.12549,141.87,141.86,0.03]
[1740554647791,20.0,141.87,141.86,0.03]
[1740554649612,27.0487,141.87,141.86,0.03]
[1740554651294,27.17419,141.87,141.86,0.03]
[1740554651713,27.0487,141.87,141.86,0.03]
[1740554652114,27.17419,141.87,141.86,0.03]
[1740554657223,45.82383886,141.87,141.79,6.32]
[1740554658312,63.44553886,141.87,141.79,6.32]
[1740554659742,44.6704,141.87,141.79,13.3725]
[1740554659901,27.0487,141.87,141.79,13.3725]
[1740554661724,7.0497,141.85,141.79,13.3725]
[1740554662227,81.1,141.84,141.79,6.32]
[1740554662526,81.1,141.83,141.79,6.32]
[1740554663310,81.1,141.83,141.78,13.2655]
[1740554665515,81.1,141.82,141.78,13.2655]
[1740554666723,81.1,141.81,141.78,7.0831]
[1740554670039,81.1,141.85,141.78,7.0831]
[1740554670298,81.1,141.84,141.78,24.716]
[1740554671322,81.1,141.84,141.79,18.77513886]
[1740554671533,81.1,141.84,141.78,7.0831]
[1740554672632,88.1502,141.84,141.78,7.0831]
[1740554673439,88.1502,141.84,141.78,0.03]
[1740554674258,81.1,141.83,141.78,0.03]
[1740554674471,81.1,141.82,141.78,0.03]
[1740554674763,81.1,141.81,141.78,0.03]
[1740554675359,81.1,141.8,141.78,0.03]
[1740554676270,81.1,141.79,141.78,0.03]
[1740554676563,7.0516,141.81,141.78,0.03]
[1740554677454,7.0516,141.81,141.68,10.1127975]
[1740554677455,20.0,141.77,141.68,10.1127975]
[1740554677635,20.0,141.77,141.69,6.34]
[1740554678257,27.0537,141.77,141.69,6.34]
[1740554679758,27.0537,141.77,141.69,13.3975]
[1740554683237,81.1,141.76,141.69,13.3975]
[1740554684264,81.1,141.76,141.69,7.0575]
[1740554684468,82.78679,141.75,141.68,1.8557975]
[1740554685440,7.0551,141.74,141.68,1.8557975]
[1740554685667,81.1,141.73,141.68,1.8557975]
[1740554686464,81.1,141.72,141.68,1.8557975]
[1740554686650,20.0,141.69,141.68,1.8557975]
[1740554687042,21.6562,141.69,141.68,1.8557975]
[1740554687478,47.48893886,141.69,141.68,1.8557975]
[1740554687675,47.48893886,141.69,141.68,1.8857975]
[1740554688159,28.7138,141.69,141.68,1.8857975]
[1740554688547,47.48893886,141.69,141.68,1.8857975]
[1740554689468,28.7138,141.69,141.68,1.8857975]
[1740554690052,3.53758488,141.71,141.68,1.8857975]
[1740554690260,8.5717,141.72,141.68,1.8857975]
[1740554690665,12.08614873,141.72,141.68,1.8857975]
[1740554691943,0.12549,141.71,141.68,1.8857975]
[1740554692145,100.00062886,141.71,141.68,1.8857975]
[1740554692474,18.77513886,141.69,141.68,1.8857975]
[1740554693671,45.83273886,141.69,141.68,1.8857975]
[1740554693872,27.0576,141.69,141.68,1.8857975]
[1740554694970,45.83273886,141.69,141.68,1.8857975]
[1740554695657,51.86253886,141.69,141.68,1.8857975]
[1740554695975,32.86253886,141.69,141.68,9.75e-05]
[1740554697354,33.98802886,141.69,141.68,9.75e-05]
[1740554698567,32.98802886,141.69,141.68,9.75e-05]
[1740554699479,32.98802886,141.69,141.68,0.0300975]
[1740554699787,33.98802886,141.69,141.68,0.0300975]
[1740554700483,31.98802886,141.69,141.68,0.0300975]
[1740554702676,32.98802886,141.69,141.68,0.0300975]
[1740554703353,32.98802886,141.69,141.68,9.75e-05]
[1740554704974,32.98802886,141.69,141.68,5.91e-05]
[1740554706478,25.95822886,141.69,141.68,5.91e-05]
[1740554706977,7.0576,141.69,141.68,5.91e-05]
[1740554707982,7.0566,141.71,141.68,5.91e-05]
[1740554711283,7.0566,141.71,141.68,0.0300591]
[1740554712571,3.57744873,141.72,141.68,0.0300591]
[1740554712772,10.63374873,141.72,141.68,0.0300591]
[1740554714088,7.1193,141.72,141.68,0.0300591]
[1740554714288,0.063,141.72,141.68,0.0300591]
[1740554714786,7.1193,141.72,141.68,0.0300591]
[1740554715865,81.1,141.7,141.68,0.0300591]
[1740554724099,88.1571,141.7,141.68,0.0300591]
[1740554724805,81.1,141.69,141.68,0.0300591]
[1740554724990,7.0571,141.7,141.68,0.0300591]
[1740554725909,0.063,141.72,141.68,0.0300591]
[1740554726088,81.1,141.71,141.68,0.0300591]
[1740554727495,88.157,141.71,141.68,0.0300591]
[1740554729635,105.7986,141.71,141.68,0.0300591]
[1740554730834,81.1,141.7,141.68,0.0300591]
[1740554731411,7.0576,141.69,141.68,0.0300591]
[1740554732850,25.83273886,141.69,141.68,5.91e-05]
[1740554733136,27.83273886,141.69,141.68,5.91e-05]
[1740554733632,29.35972491,141.69,141.68,5.91e-05]
[1740554733930,30.35972491,141.69,141.68,5.91e-05]
[1740554734530,31.35972491,141.69,141.68,5.91e-05]
[1740554735144,30.35972491,141.69,141.68,5.91e-05]
[1740554735315,29.48521491,141.69,141.68,5.91e-05]
[1740554735922,30.48521491,141.69,141.68,5.91e-05]
[1740554736121,29.48521491,141.69,141.68,5.91e-05]
[1740554736314,30.48521491,141.69,141.68,5.91e-05]
[1740554736535,10.71007605,141.69,141.68,5.91e-05]
[1740554736735,1.063,141.72,141.68,5.91e-05]
[1740554736736,0.063,141.72,141.68,5.91e-05]
[1740554736921,20.0,141.7,141.68,5.91e-05]
[1740554737117,0.063,141.71,141.68,5.91e-05]
[1740554740629,81.1,141.7,141.68,5.91e-05]
[1740554745420,0.063,141.71,141.68,5.91e-05]
[1740554745625,0.063,141.71,141.69,1.5573]
[1740554746227,0.063,141.71,141.7,6.6291]
[1740554747857,0.063,141.71,141.7,13.6862]
[1740554749042,0.063,141.71,141.7,7.0571]
[1740554750937,0.063,141.71,141.69,15.1099]
[1740554761262,0.063,141.71,141.69,8.6148]
[1740554761453,0.063,141.71,141.68,13.3980591]
[1740554761767,0.063,141.71,141.68,31.0433591]
[1740554762441,0.0001,141.71,141.7,0.12549]
[1740554762761,0.0001,141.71,141.7,15.35179]
[1740554764285,0.0001,141.71,141.7,15.2263]
[1740554765170,0.0001,141.71,141.68,6.3400591]
[1740554765482,0.0001,141.71,141.69,6.34]
[1740554765977,81.1001,141.71,141.68,5.91e-05]
[1740554766182,81.1,141.7,141.68,5.91e-05]
[1740554769275,0.0001,141.71,141.68,5.91e-05]
[1740554771396,0.0001,141.71,141.68,7.0581591]
[1740554771963,0.0001,141.71,141.68,24.7034591]
[1740554772194,0.0001,141.71,141.7,20.0]
[1740554772367,0.0001,141.71,141.7,25.24062886]
[1740554772570,0.0001,141.71,141.7,25.11513886]
[1740554772887,0.0001,141.71,141.7,25.24062886]
[1740554773683,0.0001,141.71,141.7,32.29772886]
[1740554775423,81.1,141.76,141.71,0.12549]
[1740554775578,0.063,141.77,141.72,0.12549]
[1740554776077,0.063,141.77,141.74,20.0]
[1740554776267,0.063,141.77,141.76,18.77513886]
[1740554776463,0.0001,141.77,141.76,26.87772886]
[1740554776678,0.0001,141.77,141.76,27.87772886]
[1740554777678,0.0001,141.77,141.76,34.93182886]
[1740554779295,0.0001,141.77,141.76,39.50035948]
[1740554779676,0.0001,141.77,141.76,258.60035948]
[1740554780589,0.0001,141.77,141.76,301.04035948]
[1740554781395,0.0001,141.77,141.76,253.03182886]
[1740554781987,0.0001,141.77,141.76,33.93182886]
[1740554782477,0.0001,141.77,141.76,34.93182886]
[1740554782888,0.0001,141.77,141.76,33.93182886]
[1740554783090,0.0001,141.77,141.76,40.12633886]
[1740554783996,0.0001,141.77,141.76,40.25182886]
[1740554784492,0.0001,141.77,141.76,13.3741]
[1740554786002,0.0001,141.77,141.76,13.49959]
[1740554786188,0.0001,141.77,141.76,13.62508]
[1740554788205,0.13526888,141.81,141.8,0.12549]
[1740554788385,0.13526888,141.81,141.8,18.77513886]
[1740554789600,0.13526888,141.81,141.8,25.82723886]
[1740554789806,0.13526888,141.81,141.8,7.0521]
[1740554791995,0.13526888,141.81,141.77,7.0536]
[1740554792402,0.13526888,141.81,141.78,18.77513886]
[1740554792709,0.13526888,141.81,141.8,38.77513886]
[1740554794303,0.13526888,141.81,141.8,45.95272886]
[1740554794886,0.063,141.85,141.84,20.12549]
[1740554795199,0.063,141.85,141.84,45.09513886]
[1740554796302,0.0001,141.85,141.84,135.17072886]
[1740554800002,0.0001,141.85,141.84,136.17072886]
[1740554800198,0.063,141.87,141.86,0.12549]
[1740554800703,0.063,141.87,141.85,18.77513886]
[1740554802385,0.063,141.87,141.86,25.82433886]
[1740554804687,0.0001,141.87,141.86,25.94982886]
[1740554806689,0.0001,141.87,141.86,25.82433886]
[1740554808916,0.0001,141.87,141.86,7.0492]
[1740554810010,0.0001,141.87,141.86,20.0]
[1740554810516,0.0001,141.87,141.84,6.32]
[1740554810813,1.6225,141.87,141.83,7.0506]
[1740554811419,81.1,141.86,141.82,130.6]
[1740554811720,81.1,141.86,141.8,13.372]
[1740554811916,81.1,141.85,141.8,13.372]
[1740554812099,88.1498,141.85,141.8,6.32]
[1740554812289,88.1498,141.85,141.78,7.0528]
[1740554812495,88.1498,141.85,141.78,6.32]
[1740554812798,81.1,141.84,141.78,6.32]
[1740554814111,88.1502,141.84,141.78,13.3727]
[1740554814504,6.2023,141.83,141.78,6.32]
[1740554814711,81.1,141.82,141.78,6.32]
[1740554815105,81.1,141.82,141.78,7.053]
[1740554816120,81.1,141.82,141.77,25.85873886]
[1740554816508,81.1,141.82,141.77,7.0836]
[1740554816713,88.1512,141.82,141.77,0.03]
[1740554816913,1.6143,141.81,141.77,0.03]
[1740554818601,1.6143,141.81,141.77,18.80513886]
[1740554818819,81.1,141.82,141.77,18.80513886]
[1740554819413,81.1,141.82,141.77,0.03]
[1740554822631,81.1,141.82,141.79,20.0]
[1740554822807,81.1,141.82,141.77,7.0835]
[1740554823009,81.1,141.81,141.77,7.0835]
[1740554824745,81.1,141.81,141.77,0.03]
[1740554824746,88.1517,141.81,141.77,0.03]
[1740554825043,81.1,141.8,141.77,0.03]
[1740554825221,81.1,141.79,141.77,0.03]
[1740554825616,81.1,141.78,141.77,0.03]
[1740554825818,82.672,141.78,141.77,0.03]
[1740554826316,1.572,141.78,141.77,0.03]
[1740554826846,8.6251,141.78,141.77,0.03]
[1740554827054,15.2285,141.78,141.77,0.03]
[1740554829249,15.35399,141.78,141.77,0.03]
[1740554833849,18.91144662,141.78,141.77,0.03]
[1740554834625,15.2285,141.78,141.77,0.03]
[1740554836921,34.00363886,141.78,141.77,0.03]
[1740554837439,18.77513886,141.77,141.72,0.03]
[1740554838160,0.12549,141.76,141.72,0.03]
[1740554838852,7.0546,141.75,141.72,0.03]
[1740554840136,81.22549,141.74,141.72,0.03]
[1740554840339,81.1,141.73,141.72,0.03]
[1740554840774,88.1556,141.73,141.72,0.03]
[1740554842365,8.6754,141.73,141.72,0.03]
[1740554843876,27.45053886,141.73,141.72,0.03]
[1740554844165,28.45053886,141.73,141.72,0.03]
[1740554844338,34.67843886,141.73,141.72,0.03]
[1740554845173,19.77513886,141.72,141.68,5.91e-05]
[1740554845869,0.12549,141.71,141.68,5.91e-05]
[1740554846373,0.12549,141.72,141.68,5.91e-05]
[1740554847086,7.18179,141.72,141.68,5.91e-05]
[1740554849478,25.83143886,141.72,141.68,5.91e-05]
[1740554849791,7.18179,141.72,141.68,5.91e-05]
[1740554850076,7.0571,141.7,141.68,5.91e-05]
[1740554852573,81.1,141.69,141.68,5.91e-05]
[1740554852788,7.0571,141.7,141.68,5.91e-05]
[1740554853357,3.502977,141.69,141.68,5.91e-05]
[1740554854091,10.560577,141.69,141.68,5.91e-05]
[1740554855573,29.33571586,141.69,141.68,5.91e-05]
[1740554855886,10.560577,141.69,141.68,5.91e-05]
[1740554857788,24.76,141.72,141.68,5.91e-05]
[1740554858020,7.1191,141.72,141.68,5.91e-05]
[1740554858492,0.063,141.72,141.68,5.91e-05]
[1740554859987,0.063,141.72,141.68,7.0581591]
[1740554863189,0.063,141.72,141.7,20.0]
[1740554864069,0.063,141.72,141.71,7.0566]
[1740554865705,0.063,141.72,141.7,33.377]
[1740554865906,0.063,141.72,141.7,6.32]
[1740554867904,0.063,141.72,141.68,7.0581591]
[1740554868277,0.063,141.72,141.7,20.0]
[1740554870404,0.063,141.72,141.7,27.0571]
[1740554871394,0.063,141.72,141.68,5.91e-05]
[1740554871395,81.1,141.71,141.68,5.91e-05]
[1740554875209,81.22549,141.7,141.68,5.91e-05]
[1740554875388,81.1,141.7,141.68,5.91e-05]
[1740554875781,81.1,141.69,141.68,5.91e-05]
[1740554875981,7.0567,141.71,141.68,5.91e-05]
[1740554876212,81.1,141.7,141.68,5.91e-05]
[1740554876524,0.063,141.72,141.69,18.77513886]
[1740554877032,0.063,141.72,141.7,0.12549]
[1740554877199,0.063,141.72,141.69,18.77513886]
[1740554878416,0.063,141.72,141.7,7.0571]
[1740554879436,0.063,141.72,141.71,18.77513886]
[1740554879607,0.0001,141.72,141.71,27.13352886]
[1740554879805,0.063,141.78,141.75,18.77513886]
[1740554880003,0.063,141.78,141.76,6.32]
[1740554880322,0.063,141.78,141.76,13.3736]
[1740554881221,0.063,141.78,141.71,6.2329]
[1740554881421,0.063,141.78,141.72,6.32]
[1740554882525,81.1,141.77,141.72,6.32]
[1740554883215,81.1,141.77,141.72,13.3758]
[1740554884201,0.063,141.78,141.73,0.12549]
[1740554884408,0.063,141.78,141.73,102.80062886]
[1740554884608,0.063,141.78,141.75,18.77513886]
[1740554885128,0.063,141.78,141.77,20.0]
[1740554886715,0.063,141.78,141.77,27.0536]
[1740554887133,0.063,141.78,141.77,52.27422886]
[1740554887714,0.063,141.78,141.77,26.32]
[1740554888047,0.063,141.78,141.77,6.32]
[1740554888838,0.063,141.78,141.77,13.49909]
[1740554889034,0.063,141.78,141.77,32.14873886]
[1740554889936,0.063,141.78,141.77,32.27422886]
[1740554891034,0.063,141.78,141.77,33.3736]
[1740554891441,0.063,141.78,141.77,26.32]
[1740554892941,0.063,141.78,141.77,6.32]
[1740554893604,0.063,141.78,141.77,13.3736]
[1740554894444,0.063,141.78,141.77,6.32]
[1740554895341,0.063,141.78,141.77,13.3736]
[1740554897139,0.063,141.78,141.77,32.27422886]
[1740554897345,0.063,141.78,141.77,32.14873886]
[1740554899018,0.063,141.78,141.77,32.27422886]
[1740554900940,0.063,141.78,141.77,33.27422886]
[1740554902249,0.063,141.78,141.77,34.90722886]
[1740554903147,0.063,141.78,141.77,117.80722886]
[1740554904426,81.1,141.86,141.8,0.12549]
[1740554905145,81.1,141.86,141.79,82.9]
[1740554905348,81.1,141.85,141.77,32.6407]
[1740554905526,81.1,141.84,141.77,32.6407]
[1740554905841,81.1,141.84,141.78,18.77513886]
[1740554907428,81.1,141.84,141.79,7.0526]
[1740554908857,88.1502,141.84,141.79,7.0526]
[1740554909148,82.6782,141.83,141.76,82.9]
[1740554909351,82.6782,141.83,141.77,6.32]
[1740554909852,81.1,141.82,141.75,7.0545]
[1740554910152,81.1,141.81,141.75,13.3745]
[1740554910650,81.1,141.81,141.75,6.32]
[1740554910851,7.0521,141.8,141.75,6.32]
[1740554911040,88.1517,141.81,141.75,13.3746]
[1740554911240,88.1517,141.81,141.75,6.32]
[1740554912156,1.6661,141.79,141.72,0.03]
[1740554912368,81.1,141.78,141.72,0.03]
[1740554912649,88.1534,141.78,141.72,0.03]
[1740554915266,1.6661,141.79,141.73,0.25098]
[1740554915471,1.6661,141.79,141.73,0.12549]
[1740554915973,1.6661,141.79,141.73,25.83053886]
[1740554917383,8.7189,141.79,141.73,25.83053886]
[1740554918173,8.7189,141.79,141.73,7.0554]
[1740554919151,1.6661,141.79,141.73,25.70504886]
[1740554920375,81.1,141.8,141.74,18.77513886]
[1740554920675,81.1,141.8,141.75,6.32]
[1740554921275,81.1,141.8,141.75,13.3742]
[1740554923473,81.1,141.8,141.76,18.77513886]
[1740554923776,0.063,141.81,141.76,18.77513886]
[1740554924077,0.063,141.81,141.75,13.3742]
[1740554925676,0.063,141.81,141.75,13.4042]
[1740554926948,81.163,141.81,141.75,6.35]
[1740554927178,81.1,141.8,141.75,6.35]
[1740554927681,7.0526,141.79,141.75,6.35]
[1740554927884,24.6843,141.79,141.75,0.03]
[1740554929955,7.0536,141.77,141.75,0.03]
[1740554930155,81.1,141.76,141.75,0.03]
[1740554930976,88.1541,141.76,141.75,0.03]
[1740554933976,81.1,141.76,141.75,0.03]
[1740554939987,88.1541,141.76,141.75,0.03]
[1740554940295,81.1,141.76,141.75,0.03]
[1740554943765,88.1541,141.76,141.75,0.03]
[1740554946165,81.1,141.76,141.75,0.03]
[1740554947983,88.1541,141.76,141.75,0.03]
[1740554950364,81.1,141.76,141.75,0.03]
[1740554951087,88.1541,141.76,141.75,0.03]
[1740554951487,81.1,141.76,141.75,0.03]
[1740554952565,7.1163,141.78,141.75,0.03]
[1740554953191,0.063,141.78,141.75,0.03]
[1740554953572,0.063,141.78,141.75,7.0846]
[1740554953790,0.063,141.78,141.76,6.32]
[1740554958991,0.063,141.78,141.75,0.03]
[1740554961291,81.1,141.77,141.75,0.03]
[1740554962693,88.1539,141.77,141.75,0.03]
[1740554962888,81.1,141.77,141.75,0.03]
[1740554964209,0.063,141.78,141.75,0.03]
[1740554974409,81.163,141.78,141.75,0.03]
[1740554975410,7.0536,141.77,141.75,0.03]
[1740554977805,88.2163,141.78,141.75,0.03]
[1740554983022,81.163,141.78,141.75,0.03]
[1740554983908,81.163,141.78,141.75,1.6288]
[1740554985329,0.063,141.78,141.75,1.6288]
[1740554985639,0.063,141.78,141.75,8.6832]
[1740554987031,0.063,141.78,141.77,0.12549]
[1740554987211,0.063,141.78,141.77,25.22062886]
[1740554987928,0.063,141.78,141.77,6.32]
[1740554988933,0.063,141.78,141.77,6.44549]
[1740554989232,0.063,141.78,141.77,13.49909]
[1740554989463,0.063,141.78,141.77,6.32]
[1740554991334,0.063,141.78,141.77,13.62458]
[1740554994048,0.063,141.78,141.77,6.32]
[1740554997933,0.063,141.78,141.75,0.03]
[1740555000353,81.1,141.77,141.75,0.03]
[1740555001025,81.1,141.76,141.75,0.03]
[1740555001746,81.163,141.78,141.75,0.03]
[1740555002129,0.063,141.78,141.75,0.03]
[1740555005539,7.1161,141.78,141.75,0.03]
[1740555006434,81.1,141.77,141.75,0.03]
[1740555007031,1.541,141.76,141.75,0.03]
[1740555007538,8.5951,141.76,141.75,0.03]
[1740555008052,29.49572886,141.76,141.75,0.0001]
[1740555008260,29.49572886,141.76,141.72,0.03]
[1740555008261,20.12549,141.73,141.72,0.0001]
[1740555008546,0.12549,141.72,141.69,0.03]
[1740555008752,18.90062886,141.72,141.69,0.03]
[1740555008947,20.47702886,141.7,141.69,0.0001]
[1740555009150,22.47702886,141.7,141.69,0.0001]
[1740555009337,21.47702886,141.7,141.69,0.0001]
[1740555009538,29.53412886,141.7,141.69,0.0001]
[1740555010448,2.0,141.69,141.68,5.91e-05]
[1740555011147,20.0,141.69,141.68,5.91e-05]
[1740555011454,7.0571,141.7,141.68,5.91e-05]
[1740555012154,81.1,141.69,141.68,5.91e-05]
[1740555013039,7.0576,141.69,141.68,5.91e-05]
[1740555014359,34.11712886,141.69,141.68,5.91e-05]
[1740555014560,35.77962886,141.69,141.68,5.91e-05]
[1740555015530,34.77962886,141.69,141.68,5.91e-05]
[1740555016230,15.00449,141.69,141.68,5.91e-05]
[1740555016437,16.00449,141.69,141.68,5.91e-05]
[1740555016637,35.77962886,141.69,141.68,5.91e-05]
[1740555019374,1.12549,141.64,141.62,0.03]
[1740555019573,1.12549,141.64,141.6,0.03]
[1740555020069,1.0,141.63,141.6,0.03]
[1740555020267,7.0611,141.62,141.6,0.03]
[1740555021565,24.7111,141.64,141.6,0.03]
[1740555025038,7.0611,141.62,141.6,0.03]
[1740555025471,81.1,141.62,141.6,0.03]
[1740555026993,88.1616,141.61,141.6,0.03]
[1740555027201,7.0616,141.61,141.6,0.03]
[1740555027894,20.0,141.61,141.6,0.03]
[1740555028292,7.0601,141.64,141.6,0.03]
[1740555028892,7.0586,141.67,141.6,0.03]
[1740555029078,7.0586,141.67,141.6,8.0517]
[1740555029595,20.0,141.64,141.6,8.0517]
[1740555031105,7.0606,141.63,141.6,0.03]
[1740555032394,81.1,141.62,141.6,0.03]
[1740555033977,101.1,141.64,141.6,0.03]
[1740555034301,108.1601,141.64,141.6,0.03]
[1740555036090,20.0,141.61,141.6,0.03]
[1740555037186,20.0,141.62,141.6,0.03]
[1740555037394,27.0616,141.61,141.6,0.03]
[1740555039782,27.18709,141.61,141.6,0.03]
[1740555040001,27.0616,141.61,141.6,0.03]
[1740555041909,27.18709,141.61,141.6,0.03]
[1740555042501,45.96222886,141.61,141.6,0.03]
[1740555042696,81.22549,141.6,141.53,6.35]
[1740555042915,81.1,141.59,141.53,6.35]
[1740555043206,81.1,141.59,141.53,0.03]
[1740555044410,20.0,141.55,141.53,0.03]
[1740555044789,81.1,141.54,141.53,0.03]
[1740555045820,7.0651,141.54,141.53,0.03]
[1740555046027,20.0,141.51,141.47,1.5835]
[1740555046194,101.1,141.5,141.47,1.5835]
[1740555046396,20.0,141.5,141.45,0.03]
[1740555046697,81.1,141.49,141.45,0.03]
[1740555047321,81.1,141.48,141.45,0.03]
[1740555047813,7.0686,141.47,141.45,0.03]
[1740555048020,81.1,141.46,141.45,0.03]
[1740555048901,88.1679,141.49,141.45,0.03]
[1740555049328,81.1,141.49,141.45,0.03]
[1740555050018,88.1678,141.49,141.45,0.03]
[1740555050998,81.1,141.48,141.45,0.03]
[1740555051693,7.0691,141.46,141.45,0.03]
[1740555052286,27.0691,141.46,141.45,0.03]
[1740555052488,28.19459,141.46,141.45,0.03]
[1740555052706,8.19459,141.46,141.45,0.03]
[1740555054318,26.96972886,141.46,141.45,0.03]
[1740555056309,20.0,141.42,141.35,6.5]
[1740555056508,20.0,141.38,141.31,8.01535065]
[1740555056816,81.1,141.37,141.31,9.01535065]
[1740555056994,81.1,141.4,141.32,18.90062886]
[1740555057200,81.1,141.39,141.32,18.90062886]
[1740555057396,81.1,141.39,141.32,18.77513886]
[1740555057901,81.1,141.39,141.33,7.0756]
[1740555058903,88.1727,141.39,141.32,7.076]
[1740555059503,81.1,141.38,141.31,15.09185065]
[1740555059918,88.1734,141.38,141.31,15.09185065]
[1740555060216,81.1,141.37,141.31,8.01535065]
[1740555060516,81.1,141.36,141.31,8.03535065]
[1740555060696,81.1,141.36,141.31,15.11185065]
[1740555062522,20.0,141.32,141.31,1.49535065]
[1740555063026,1.6333,141.35,141.31,1.49535065]
[1740555063324,24.7596,141.36,141.31,1.49535065]
[1740555063325,7.0743,141.36,141.31,1.49535065]
[1740555063521,20.0,141.32,141.31,1.49535065]
[1740555063821,108.1761,141.32,141.31,1.49535065]
[1740555064012,126.95123886,141.32,141.31,1.49535065]
[1740555064205,108.1761,141.32,141.31,1.49535065]
[1740555064720,2.0,141.25,141.14,7.0846]
[1740555064922,20.0,141.21,141.12,17.0013747]
[1740555065100,6.74,141.25,141.14,7.0847]
[1740555065300,20.0,141.22,141.14,7.0847]
[1740555065998,27.0812,141.22,141.14,7.0847]
[1740555066195,27.0812,141.22,141.12,8.3318747]
[1740555066400,26.95324886,141.21,141.12,1.8991747]
[1740555066807,0.12549,141.2,141.18,0.03]
[1740555067007,18.77513886,141.17,141.12,1.8991747]
[1740555067315,20.0,141.14,141.12,1.8991747]
[1740555067513,20.12549,141.14,141.12,1.8991747]
[1740555067720,7.0856,141.13,141.12,1.8991747]
[1740555068813,1.0,141.18,141.12,1.8991747]
[1740555069016,8.3036,141.21,141.12,1.8991747]
[1740555069235,16.3852,141.21,141.12,1.8991747]
[1740555069602,7.47136585,141.24,141.12,8.9852747]
[1740555069924,7.0806,141.23,141.12,8.9852747]
[1740555070222,0.12549,141.22,141.12,8.9852747]
[1740555070928,19.90062886,141.22,141.12,8.9852747]
[1740555071325,1.0,141.21,141.12,8.9852747]
[1740555071825,7.0816,141.21,141.12,8.9852747]
[1740555072530,7.0806,141.23,141.12,8.9852747]